bitfinex-derivatives/quotes_ETHF0:USTF0_20240904
["timestamp","ask_amount","ask_price","bid_price","bid_amount"]
[1725470704717,4.45366,2469.9,2469.7,0.00607091]
[1725470705012,3.2078,2470.0,2469.9,0.40485]
[1725470705713,3.2078,2470.0,2469.7,0.00607091]
[1725470706110,3.61264,2470.0,2469.7,0.00607091]
[1725470706305,0.40486,2469.9,2469.7,0.00607091]
[1725470706917,3.61265,2470.0,2469.7,0.00607091]
[1725470707313,0.40485,2469.9,2469.7,0.00607091]
[1725470708313,3.2078,2470.0,2469.7,0.00607091]
[1725470708718,0.40485,2469.9,2469.7,0.00607091]
[1725470708917,3.61264,2470.0,2469.7,0.00607091]
[1725470709218,3.61264,2470.0,2469.7,0.41095091]
[1725470709420,3.2078,2470.0,2469.9,0.40485]
[1725470709717,3.2078,2470.0,2469.7,0.00607091]
[1725470709718,3.2078,2470.0,2469.8,0.40486]
[1725470710019,3.61263,2470.0,2469.7,0.41094091]
[1725470710220,3.2078,2470.0,2469.8,0.40486]
[1725470710419,3.2078,2470.0,2469.7,0.00607091]
[1725470710420,0.40486,2469.9,2469.7,0.00607091]
[1725470711118,0.40487,2469.8,2469.7,0.00607091]
[1725470711717,4.45367,2469.8,2469.7,0.00607091]
[1725470711919,14.26584,2469.8,2469.7,0.00607091]
[1725470712224,0.40496,2469.2,2469.1,3.2078]
[1725470712414,3.2078,2469.3,2468.9,0.40501]
[1725470712614,0.3678,2469.2,2468.6,0.7397]
[1725470712816,0.405,2469.0,2468.8,0.40502]
[1725470713011,0.40501,2468.9,2468.7,0.40504]
[1725470713222,36.7,2469.1,2468.6,0.3851]
[1725470713523,0.40503,2468.8,2468.6,0.79016]
[1725470714211,0.41109091,2468.9,2468.6,0.3851]
[1725470714526,0.00607091,2468.9,2468.8,0.40503]
[1725470715022,0.00607091,2468.9,2468.8,1.41761]
[1725470715320,0.00607091,2468.9,2468.8,5.46801]
[1725470716015,0.00607091,2468.9,2468.8,4.45543]
[1725470716319,0.00607091,2468.9,2468.8,5.46801]
[1725470716514,0.00607091,2468.9,2468.8,5.85791]
[1725470720023,0.00607091,2468.9,2468.8,1.80751]
[1725470720223,0.00607091,2468.9,2468.8,5.85791]
[1725470720723,0.75891,2469.6,2469.4,0.40492]
[1725470721118,0.40494,2469.4,2469.2,0.77355]
[1725470721412,3.5618,2469.6,2468.8,0.40502]
[1725470721617,1.01242,2469.2,2468.5,3.5949]
[1725470721818,1.79834,2469.1,2469.0,0.00607091]
[1725470722420,4.0504,2469.1,2469.0,0.00607091]
[1725470722611,0.00607091,2469.4,2469.0,0.00607091]
[1725470722818,0.00607091,2469.4,2469.2,0.40496]
[1725470723124,0.40495,2469.3,2469.1,0.40497]
[1725470723422,0.00607091,2469.4,2469.0,0.00607091]
[1725470723423,0.40498,2469.1,2469.0,0.00607091]
[1725470723622,0.40497,2469.2,2469.0,0.41106091]
[1725470723824,0.40498,2469.1,2469.0,0.00607091]
[1725470725719,4.45538,2469.1,2469.0,0.00607091]
[1725470726027,0.40509,2468.5,2468.2,3.2078]
[1725470726230,0.4051,2468.4,2468.2,3.2078]
[1725470726524,4.22041,2468.8,2468.2,3.2078]
[1725470726525,0.40509,2468.5,2468.2,3.61293]
[1725470726725,0.40507,2468.6,2468.2,3.61293]
[1725470727024,4.22041,2468.8,2468.2,3.61293]
[1725470727225,0.40508,2468.5,2468.1,0.40514]
[1725470727520,0.40507,2468.6,2468.2,0.40512]
[1725470727725,4.22041,2468.8,2468.2,0.40512]
[1725470727926,0.40509,2468.5,2468.1,3.61293]
[1725470728220,0.4051,2468.4,2468.1,3.61293]
[1725470728626,0.40508,2468.5,2468.2,0.40513]
[1725470728833,0.40508,2468.5,2468.0,0.3619]
[1725470728834,0.40513,2468.2,2468.0,0.3619]
[1725470729123,0.40514,2468.2,2468.0,0.3619]
[1725470729327,0.40513,2468.2,2468.0,0.3619]
[1725470729923,0.40512,2468.3,2468.0,0.3619]
[1725470730118,3.9514,2468.4,2468.0,0.3619]
[1725470730119,0.3783,2468.4,2468.0,0.3619]
[1725470730318,0.3783,2468.4,2468.1,0.40514]
[1725470730626,0.3783,2468.4,2468.2,0.40513]
[1725470730927,0.3783,2468.4,2468.2,0.40512]
[1725470731121,0.3783,2468.4,2468.1,0.40514]
[1725470732217,0.3783,2468.4,2468.0,0.3619]
[1725470732521,0.3783,2468.4,2468.2,0.40512]
[1725470732722,0.40509,2468.5,2468.0,0.3619]
[1725470732931,4.51607,2468.6,2468.1,3.2078]
[1725470733132,4.111,2468.6,2468.3,0.40511]
[1725470733322,4.111,2468.6,2468.5,0.40508]
[1725470733523,4.111,2468.6,2468.5,3.61288]
[1725470733725,4.111,2468.6,2468.5,3.2078]
[1725470733926,4.111,2468.6,2468.3,0.4051]
[1725470734125,4.111,2468.6,2468.1,3.61294]
[1725470734434,0.4051,2468.4,2468.1,3.61294]
[1725470735133,0.40508,2468.5,2468.2,0.40513]
[1725470735424,7.3188,2468.6,2468.1,3.2078]
[1725470735630,0.40507,2468.6,2468.1,3.2078]
[1725470735935,0.40509,2468.5,2468.2,0.40512]
[1725470736628,0.4051,2468.4,2468.1,3.61294]
[1725470736935,3.2078,2468.6,2467.8,3.9528]
[1725470737131,0.40514,2468.2,2467.9,0.40517]
[1725470737429,0.40511,2468.3,2467.8,3.9528]
[1725470737625,0.40511,2468.3,2468.0,0.40515]
[1725470737931,0.77959,2468.5,2468.2,0.40512]
[1725470738332,0.4051,2468.4,2468.1,3.61293]
[1725470738628,0.3745,2468.5,2468.1,3.2078]
[1725470738831,0.77958,2468.5,2468.3,0.40511]
[1725470739034,0.3745,2468.5,2468.3,0.40511]
[1725470739230,0.3745,2468.5,2468.4,0.4051]
[1725470739432,0.3745,2468.5,2468.3,3.6129]
[1725470739831,0.3745,2468.5,2468.4,0.4051]
[1725470740032,0.40505,2468.7,2468.3,3.2078]
[1725470740327,0.40506,2468.6,2468.4,0.40508]
[1725470740531,5.8437,2468.8,2468.3,0.4051]
[1725470740731,0.4051,2468.4,2468.2,0.40512]
[1725470741235,0.40509,2468.5,2468.2,0.40512]
[1725470741430,0.40509,2468.5,2468.3,0.40511]
[1725470741627,2.8,2468.6,2467.9,3.2078]
[1725470741933,2.1,2468.3,2467.9,3.2078]
[1725470742132,0.3873,2468.2,2467.9,3.61297]
[1725470742331,0.40515,2468.1,2467.9,3.2078]
[1725470742728,2.1,2468.5,2467.9,4.22073]
[1725470743029,0.40511,2468.4,2468.2,0.40513]
[1725470743235,0.40511,2468.4,2468.2,0.40512]
[1725470743639,2.1,2468.5,2468.0,1.01291]
[1725470743829,3.2078,2468.6,2468.3,0.40511]
[1725470744123,0.4051,2468.4,2468.2,0.40512]
[1725470744321,0.40509,2468.5,2468.3,0.40511]
[1725470744936,1.76224,2468.7,2468.0,1.01289]
[1725470745134,0.40508,2468.6,2468.4,0.40509]
[1725470745433,1.15466,2468.7,2468.5,0.40507]
[1725470745833,0.7496,2468.7,2468.6,0.40506]
[1725470746036,0.3873,2468.7,2468.6,0.40506]
[1725470746438,4.111,2468.8,2468.7,0.40505]
[1725470746633,7.7091,2469.2,2468.9,0.405]
[1725470746838,0.40499,2469.1,2468.6,1.37835]
[1725470747036,0.405,2469.0,2468.7,0.3553]
[1725470747239,0.405,2469.0,2468.9,0.405]
[1725470747542,0.40499,2469.1,2468.9,0.405]
[1725470748141,0.40499,2469.1,2469.0,0.405]
[1725470749146,8.11407,2469.2,2469.1,0.40498]
[1725470749440,0.405,2469.1,2469.0,0.40498]
[1725470749641,7.7091,2469.2,2468.7,1.36792]
[1725470749843,0.40499,2469.1,2469.0,0.40498]
[1725470751847,0.40502,2468.9,2468.8,0.40501]
[1725470752042,0.40501,2469.0,2468.9,0.405]
[1725470753543,3.5981,2469.2,2468.7,1.36792]
[1725470753851,0.40499,2469.1,2469.0,0.40498]
[1725470754047,0.40505,2468.7,2468.6,0.3657]
[1725470754355,1.01266,2468.6,2468.1,0.40513]
[1725470754648,0.40512,2468.3,2468.1,0.40513]
[1725470755248,0.40514,2468.2,2468.0,0.3807]
[1725470755453,0.40514,2468.1,2468.0,0.3807]
[1725470755953,0.40514,2468.2,2468.0,0.78586]
[1725470756853,1.01279,2468.3,2468.0,0.3807]
[1725470757159,0.40514,2468.1,2468.0,0.3807]
[1725470757346,0.40514,2468.2,2468.0,0.3807]
[1725470757648,0.40518,2467.9,2467.5,3.5819]
[1725470757844,0.00607091,2467.9,2467.7,0.40521]
[1725470758042,0.41125091,2467.9,2467.7,0.40521]
[1725470758352,0.41126091,2467.9,2467.6,1.12522]
[1725470758653,0.41126091,2467.9,2467.7,0.40521]
[1725470758851,0.00607091,2467.9,2467.7,0.4052]
[1725470759060,0.00607091,2467.9,2467.6,0.72]
[1725470759358,0.00607091,2467.9,2467.7,0.4052]
[1725470759656,0.41125091,2467.9,2467.6,1.12521]
[1725470759857,0.00607091,2467.9,2467.6,0.72]
[1725470760157,0.00607091,2467.9,2467.7,0.4052]
[1725470760359,0.00607091,2467.9,2467.6,0.72]
[1725470760557,0.00607091,2467.9,2467.8,0.40519]
[1725470760954,0.00607091,2467.9,2467.8,3.61299]
[1725470761259,0.41126091,2467.9,2467.6,1.12522]
[1725470761455,0.41126091,2467.9,2467.7,0.40521]
[1725470761659,0.00607091,2467.9,2467.7,0.40521]
[1725470761861,0.41125091,2467.9,2467.7,0.40521]
[1725470762462,0.00607091,2467.9,2467.8,0.40519]
[1725470762669,0.41125091,2467.9,2467.7,0.4052]
[1725470762969,0.00607091,2467.9,2467.8,0.40519]
[1725470763355,0.00607091,2467.9,2467.8,5.47018]
[1725470763663,0.00607091,2467.9,2467.8,12.48317]
[1725470764059,0.3533,2468.5,2468.4,0.4051]
[1725470764364,0.40503,2468.8,2468.2,1.01282]
[1725470764562,0.727,2469.0,2468.4,1.01275]
[1725470764866,0.405,2469.1,2468.9,0.40501]
[1725470765257,0.405,2469.0,2468.9,0.40501]
[1725470765457,0.40499,2469.1,2468.7,0.3689]
[1725470765757,0.40499,2469.1,2468.9,0.405]
[1725470766067,0.41104091,2469.2,2469.0,0.40499]
[1725470766263,0.00607091,2469.2,2468.7,0.3689]
[1725470766462,0.00607091,2469.2,2469.1,0.40498]
[1725470766763,0.00607091,2469.2,2469.1,4.45458]
[1725470767464,0.00607091,2469.2,2469.1,5.46704]
[1725470767763,0.00607091,2469.2,2469.1,4.45458]
[1725470769363,0.00607091,2469.2,2469.1,0.40498]
[1725470769563,0.00607091,2469.2,2469.1,7.66238]
[1725470770965,0.00607091,2469.2,2469.1,3.61278]
[1725470771159,0.00607091,2469.2,2469.1,7.66238]
[1725470771356,0.00607091,2469.2,2469.1,3.61278]
[1725470771764,0.00607091,2469.2,2469.1,7.66238]
[1725470772058,0.00607091,2469.2,2469.1,0.40498]
[1725470772265,0.00607091,2469.2,2469.0,0.78859]
[1725470773263,0.00607091,2469.2,2469.1,0.40498]
[1725470773464,0.00607091,2469.2,2469.0,0.78858]
[1725470773859,0.00607091,2469.2,2469.1,0.40498]
[1725470774460,0.00607091,2469.2,2469.1,4.45458]
[1725470774655,0.00607091,2469.2,2469.1,0.40498]
[1725470775559,0.00607091,2469.2,2469.1,5.46704]
[1725470776671,0.00607091,2469.2,2469.1,4.45458]
[1725470777070,0.00607091,2469.2,2469.1,5.46704]
[1725470777469,0.00607091,2469.2,2469.1,0.40498]
[1725470777665,0.00607091,2469.2,2468.8,3.2078]
[1725470777969,0.00607091,2469.2,2469.1,0.40498]
[1725470778470,0.41103091,2469.2,2469.0,0.40499]
[1725470778677,0.00607091,2469.2,2469.1,0.40498]
[1725470779672,0.41104091,2469.2,2469.0,0.40499]
[1725470780273,0.40499,2469.1,2468.9,9.02608291]
[1725470780474,0.00607091,2469.2,2468.9,8.62108291]
[1725470780675,0.40498,2469.1,2468.9,9.02608291]
[1725470781681,0.40502,2468.9,2468.7,1.16274]
[1725470782067,0.40503,2468.8,2468.7,0.3689]
[1725470782376,0.40503,2468.8,2468.6,0.40506]
[1725470782680,4.22031,2469.0,2468.5,9.05611943]
[1725470782878,0.40506,2468.6,2468.5,8.65105943]
[1725470783175,0.40508,2468.5,2468.3,0.4051]
[1725470783672,3.5937,2468.6,2468.2,0.3673]
[1725470783878,4.60637,2468.6,2468.2,0.3673]
[1725470784072,0.40509,2468.5,2468.3,0.40511]
[1725470785074,4.60637,2468.6,2468.2,0.77242]
[1725470785277,0.40509,2468.5,2468.3,0.40511]
[1725470785774,3.5937,2468.6,2468.4,0.4051]
[1725470785966,0.40509,2468.5,2468.3,0.4051]
[1725470787073,0.4051,2468.4,2468.2,0.77242]
[1725470787280,4.60638,2468.6,2468.3,0.40511]
[1725470787281,0.40508,2468.5,2468.3,0.40511]
[1725470787475,0.40509,2468.5,2468.3,0.40511]
[1725470787676,0.3859,2468.6,2468.5,0.40508]
[1725470787875,0.79097,2468.6,2468.4,0.40508]
[1725470788075,0.3859,2468.6,2468.3,0.4051]
[1725470788277,0.40511,2468.4,2468.2,0.40512]
[1725470788473,1.78577,2468.6,2468.2,0.40512]
[1725470788673,1.01273,2468.5,2468.1,8.67497627]
[1725470788880,0.7731,2468.6,2468.0,0.40515]
[1725470788881,0.40513,2468.2,2468.0,0.40515]
[1725470789079,3.2078,2468.1,2468.0,0.40515]
[1725470789676,3.2078,2468.1,2467.9,0.41124091]
[1725470789677,3.61294,2468.1,2467.9,0.41124091]
[1725470789872,3.2078,2468.1,2468.0,0.40516]
[1725470790979,0.40512,2468.3,2468.1,0.40514]
[1725470791680,0.40511,2468.4,2468.2,0.40512]
[1725470791869,0.40512,2468.3,2468.1,0.40514]
[1725470792177,3.2078,2468.5,2468.0,1.0129]
[1725470792479,4.90196,2468.6,2468.1,1.01287]
[1725470792679,4.90196,2468.6,2468.4,0.40509]
[1725470792875,4.90196,2468.6,2468.5,0.40508]
[1725470793079,4.90196,2468.6,2468.4,0.40509]
[1725470793080,0.79096,2468.6,2468.4,0.40509]
[1725470793480,0.40509,2468.5,2468.1,1.01287]
[1725470793681,0.79098,2468.6,2468.4,0.40509]
[1725470793871,0.40508,2468.5,2468.4,0.40509]
[1725470794069,0.79097,2468.6,2468.4,0.40509]
[1725470794584,0.40508,2468.5,2468.4,0.40509]
[1725470794875,7.259,2468.5,2468.4,0.40509]
[1725470795083,7.66408,2468.5,2468.4,0.40509]
[1725470795773,0.40511,2468.3,2468.2,0.40512]
[1725470795980,0.40514,2468.2,2468.1,0.40514]
[1725470796181,0.40513,2468.2,2468.1,0.40513]
[1725470796482,0.40512,2468.3,2468.2,0.40513]
[1725470796784,0.3868,2468.4,2468.2,0.40513]
[1725470797090,0.40511,2468.3,2468.2,0.40513]
[1725470797278,0.4051,2468.4,2468.3,0.40511]
[1725470797783,4.4563,2468.4,2468.3,0.40511]
[1725470798483,0.40509,2468.5,2468.0,1.0129]
[1725470798777,0.79098,2468.6,2467.9,0.00607091]
[1725470798978,0.79097,2468.6,2468.5,0.40508]
[1725470799379,4.84217,2468.6,2468.5,0.40508]
[1725470799784,0.40508,2468.5,2468.4,0.40508]
[1725470799987,0.40512,2468.3,2468.2,0.40512]
[1725470800284,4.22052,2468.5,2467.9,1.01901091]
[1725470800478,0.4051,2468.4,2468.3,0.40511]
[1725470801590,3.61289,2468.5,2468.4,0.4051]
[1725470802383,0.4051,2468.4,2468.3,0.4051]
[1725470802589,3.61288,2468.5,2468.4,0.4051]
[1725470802983,0.4051,2468.4,2468.3,0.4051]
[1725470803691,0.4051,2468.4,2468.3,0.40511]
[1725470804486,0.40512,2468.3,2468.2,0.40512]
[1725470804686,0.40511,2468.4,2468.3,0.40511]
[1725470806795,0.40509,2468.5,2468.4,0.40509]
[1725470807493,0.4051,2468.4,2468.3,0.4051]
[1725470807896,1.01271,2468.5,2468.1,0.3713]
[1725470808088,0.4051,2468.4,2468.3,0.40511]
[1725470808391,0.4051,2468.4,2468.3,0.4051]
[1725470809394,0.40511,2468.3,2468.2,0.40512]
[1725470810494,4.42005768,2468.5,2468.1,0.3713]
[1725470810495,0.40513,2468.2,2468.1,0.77643]
[1725470810790,0.40512,2468.3,2468.2,0.40513]
[1725470811193,2.5051,2468.4,2468.0,1.01291]
[1725470811494,0.40511,2468.3,2467.9,1.01902091]
[1725470811795,2.1,2468.4,2468.3,0.40511]
[1725470812185,3.2078,2468.5,2468.4,0.4051]
[1725470812685,1.3693,2469.0,2468.7,0.40503]
[1725470812991,0.40504,2468.8,2468.6,0.40505]
[1725470813194,0.40505,2468.7,2468.6,0.40505]
[1725470813491,5.71283,2468.9,2468.7,0.40504]
[1725470813687,0.40503,2468.8,2468.6,0.40505]
[1725470813887,0.40503,2468.8,2468.7,0.40505]
[1725470814189,0.40503,2468.8,2468.6,0.40505]
[1725470814391,0.40503,2468.8,2468.5,0.364]
[1725470814593,5.3078,2468.9,2468.7,0.40504]
[1725470814787,0.00607091,2469.2,2468.7,2.1]
[1725470814983,0.00607091,2469.2,2469.1,0.40498]
[1725470817994,0.00607091,2469.2,2468.8,0.7657]
[1725470818394,0.41104091,2469.2,2468.9,0.405]
[1725470818592,0.00607091,2469.2,2469.0,0.40499]
[1725470818793,0.41103091,2469.2,2469.0,0.40499]
[1725470818993,0.40499,2469.1,2468.8,0.7657]
[1725470819196,0.00607091,2469.2,2468.8,0.7657]
[1725470819500,3.61279,2469.1,2468.8,0.79662]
[1725470820096,0.405,2469.0,2468.8,0.79662]
[1725470820796,0.40501,2468.9,2468.8,0.3916]
[1725470820999,0.3903,2469.0,2468.8,0.79662]
[1725470821296,0.7953,2469.0,2468.8,0.79662]
[1725470821598,0.7953,2469.0,2468.9,0.40501]
[1725470821599,0.3903,2469.0,2468.9,0.40501]
[1725470821798,3.2078,2469.1,2469.0,0.405]
[1725470822001,0.00607091,2469.2,2469.1,0.40498]
[1725470823499,0.00607091,2469.2,2469.1,5.46704]
[1725470823704,0.00607091,2469.2,2469.1,8.5795]
[1725470823999,3.2078,2469.5,2469.4,0.40493]
[1725470824203,3.5797,2469.9,2469.7,0.40487]
[1725470824499,3.2078,2469.9,2469.8,0.40487]
[1725470824796,3.2078,2469.9,2469.8,1.41704]
[1725470825001,0.00607091,2470.1,2470.0,0.40483]
[1725470825502,0.00607091,2470.1,2469.6,3.58907091]
[1725470825700,0.40488,2469.7,2469.6,0.00607091]
[1725470825899,3.51709,2469.7,2469.6,0.00607091]
[1725470826199,0.40496,2469.3,2468.9,0.3731]
[1725470826399,4.22011,2469.5,2469.0,0.40499]
[1725470826599,0.40495,2469.3,2469.0,0.40499]
[1725470826800,0.3916,2469.4,2468.9,0.3731]
[1725470827000,0.40496,2469.3,2469.0,0.405]
[1725470827197,0.40496,2469.3,2469.1,0.40498]
[1725470827504,0.40496,2469.3,2469.0,0.40499]
[1725470828500,1.01238,2469.3,2468.9,0.37917091]
[1725470828694,0.40497,2469.2,2468.9,0.78418091]
[1725470828899,0.40498,2469.1,2468.9,0.78418091]
[1725470829099,0.40497,2469.2,2468.9,0.78418091]
[1725470829397,0.40498,2469.1,2468.9,0.78418091]
[1725470829798,3.2078,2469.2,2468.9,0.37917091]
[1725470830000,0.40499,2469.1,2468.9,0.00607091]
[1725470830302,2.89654,2469.4,2469.1,0.40498]
[1725470830502,2.89654,2469.4,2469.0,0.40499]
[1725470830705,0.40497,2469.2,2468.9,0.00607091]
[1725470831300,0.3916,2469.4,2468.9,0.00607091]
[1725470831504,0.405,2469.0,2468.9,0.00607091]
[1725470831804,3.2078,2469.2,2468.9,0.00607091]
[1725470832403,3.2078,2469.2,2469.0,0.40499]
[1725470833003,3.2078,2469.2,2468.9,0.41107091]
[1725470833806,3.61277,2469.2,2468.9,0.41107091]
[1725470834102,3.61277,2469.2,2469.0,0.405]
[1725470834304,3.2078,2469.2,2469.0,0.405]
[1725470834506,3.2078,2469.2,2469.1,0.40498]
[1725470834712,3.61277,2469.2,2468.9,0.00607091]
[1725470835004,3.2078,2469.2,2469.0,0.40499]
[1725470835205,0.40498,2469.1,2468.9,0.00607091]
[1725470835407,3.61277,2469.2,2468.9,0.41107091]
[1725470835612,3.2078,2469.2,2469.0,0.40499]
[1725470836002,3.61277,2469.2,2469.0,0.40499]
[1725470836299,3.2078,2469.2,2469.0,0.40499]
[1725470836500,0.79654,2469.4,2469.1,0.40497]
[1725470836900,0.40495,2469.3,2469.0,0.40499]
[1725470837112,0.40495,2469.3,2469.1,0.40498]
[1725470837406,0.40497,2469.2,2469.0,0.40499]
[1725470838007,0.40496,2469.3,2469.0,0.40499]
[1725470838707,0.40497,2469.2,2469.0,0.40499]
[1725470840706,0.79654,2469.4,2468.9,0.00607091]
[1725470840908,0.79654,2469.4,2469.1,0.40497]
[1725470840909,0.40495,2469.3,2469.1,0.40497]
[1725470841108,0.3916,2469.4,2469.2,0.40496]
[1725470841109,0.79654,2469.4,2469.2,0.40496]
[1725470841815,0.40495,2469.3,2469.1,0.40497]
[1725470842007,0.40495,2469.3,2469.2,0.40496]
[1725470842204,0.3916,2469.4,2469.3,0.40495]
[1725470842412,0.79654,2469.4,2468.9,1.01860091]
[1725470842611,0.3916,2469.4,2469.3,0.40495]
[1725470843111,0.40495,2469.3,2469.1,0.76627]
[1725470843312,0.79654,2469.4,2469.2,0.40496]
[1725470844103,0.79654,2469.4,2469.2,0.40495]
[1725470844512,0.79654,2469.4,2469.3,0.40495]
[1725470844814,0.40495,2469.3,2469.2,0.40496]
[1725470845119,0.3916,2469.4,2469.2,0.40496]
[1725470845314,0.40495,2469.3,2469.1,0.40497]
[1725470845508,0.3916,2469.4,2469.3,0.40495]
[1725470845509,0.79654,2469.4,2469.3,0.40495]
[1725470845713,0.40495,2469.3,2469.2,0.40496]
[1725470846016,0.79654,2469.4,2469.2,0.40496]
[1725470846314,0.3916,2469.4,2469.2,0.40496]
[1725470846504,0.3916,2469.4,2469.3,0.40495]
[1725470847314,0.79654,2469.4,2469.2,0.40496]
[1725470847512,0.3916,2469.4,2469.1,0.385]
[1725470847702,0.405,2469.0,2468.9,0.00607091]
[1725470848610,1.4175,2469.0,2468.9,0.00607091]
[1725470849018,0.40508,2468.5,2468.4,0.40509]
[1725470849210,1.01263,2468.7,2468.2,0.3615]
[1725470849517,0.40511,2468.4,2468.2,0.76662]
[1725470849716,0.40511,2468.4,2468.3,0.40511]
[1725470849915,0.40511,2468.4,2468.2,0.3615]
[1725470849916,0.40511,2468.4,2468.2,0.76662]
[1725470850116,0.40511,2468.3,2468.1,0.40513]
[1725470850316,0.40515,2468.1,2467.9,0.40517]
[1725470850617,0.40516,2468.1,2467.9,0.40517]
[1725470851017,0.40516,2468.0,2467.9,0.40517]
[1725470851313,0.40516,2468.0,2467.8,0.76669]
[1725470851314,0.40517,2468.0,2467.8,0.76669]
[1725470852619,0.78766,2468.1,2467.9,0.40518]
[1725470853215,0.3825,2468.1,2467.8,0.3615]
[1725470853415,0.78766,2468.1,2467.9,0.40518]
[1725470853612,0.3825,2468.1,2468.0,0.40516]
[1725470853810,3.61293,2468.2,2467.8,0.3615]
[1725470854017,0.40513,2468.2,2468.0,0.40516]
[1725470854415,0.40513,2468.2,2467.8,0.3615]
[1725470854416,0.40514,2468.2,2467.8,0.3615]
[1725470854621,0.40514,2468.2,2468.0,0.40516]
[1725470854819,0.3845,2468.3,2467.9,0.40516]
[1725470855017,0.40514,2468.2,2467.9,0.40516]
[1725470855318,0.40514,2468.2,2468.0,0.40516]
[1725470855623,0.40514,2468.1,2467.9,0.40517]
[1725470855816,4.60509,2468.3,2467.8,0.3615]
[1725470856017,0.40515,2468.1,2467.9,0.40517]
[1725470856313,0.40515,2468.1,2467.9,0.40518]
[1725470857217,0.40514,2468.2,2467.9,0.40516]
[1725470857417,3.5923,2468.3,2467.8,0.3615]
[1725470857620,0.40513,2468.2,2467.8,3.84509]
[1725470857819,0.40513,2468.2,2468.0,0.40515]
[1725470858019,3.99742,2468.3,2468.1,0.40514]
[1725470858315,0.4051,2468.4,2468.2,0.40511]
[1725470858918,0.00607091,2468.5,2468.4,0.4051]
[1725470861420,0.00607091,2468.5,2467.8,3.48359]
[1725470861616,0.40511,2468.3,2468.1,0.78813]
[1725470861919,0.41116091,2468.5,2468.3,0.4051]
[1725470862118,0.4051,2468.4,2468.1,0.383]
[1725470862423,0.41115091,2468.5,2468.3,0.40511]
[1725470862625,0.40512,2468.3,2468.1,0.383]
[1725470862815,0.40513,2468.2,2468.1,0.383]
[1725470863011,3.49485,2468.4,2468.1,0.383]
[1725470863219,0.40513,2468.2,2468.1,0.383]
[1725470863523,0.40512,2468.3,2468.1,0.78814]
[1725470863919,0.40513,2468.2,2468.1,0.383]
[1725470864113,0.40514,2468.1,2468.0,0.3555]
[1725470864318,0.40517,2468.0,2467.9,0.40517]
[1725470864519,0.40517,2468.0,2467.8,1.15878]
[1725470864714,0.79405,2468.1,2467.9,8.5852964]
[1725470865027,0.79404,2468.1,2467.9,8.9904664]
[1725470865428,0.40516,2468.0,2467.9,8.5852964]
[1725470865615,0.3889,2468.1,2467.9,8.5852964]
[1725470865616,0.79406,2468.1,2467.9,8.9904764]
[1725470867633,0.3889,2468.1,2468.0,0.40516]
[1725470867833,0.40514,2468.2,2468.0,0.40516]
[1725470868032,0.40514,2468.1,2468.0,0.77156]
[1725470869028,0.40514,2468.2,2468.0,0.77156]
[1725470869227,0.40514,2468.1,2468.0,0.77156]
[1725470869629,1.01279,2468.3,2468.0,0.77156]
[1725470869831,0.40514,2468.1,2468.0,0.3664]
[1725470870027,0.40515,2468.1,2468.0,0.40516]
[1725470870231,0.40515,2468.1,2467.9,8.9904664]
[1725470870636,0.40516,2468.0,2467.9,8.9904664]
[1725470870825,0.40515,2468.1,2467.9,8.9904664]
[1725470871525,0.40516,2468.0,2467.9,8.9904664]
[1725470871730,5.3078,2468.0,2467.3,1.01319]
[1725470872031,0.40524,2467.6,2467.4,0.40525]
[1725470872237,3.2078,2467.7,2467.6,0.40523]
[1725470872626,3.61301,2467.7,2467.6,0.40523]
[1725470872828,0.40524,2467.6,2467.3,0.7444]
[1725470873127,0.40524,2467.6,2467.4,0.40525]
[1725470873429,4.42618534,2467.7,2467.3,0.77277]
[1725470873631,0.40526,2467.4,2467.2,0.40528]
[1725470873837,0.3532,2467.3,2467.2,0.40528]
[1725470874330,0.40531,2467.1,2467.0,0.3711]
[1725470874634,3.61311,2467.1,2467.0,0.77643]
[1725470874835,3.2078,2467.1,2467.0,0.40533]
[1725470875031,3.61312,2467.1,2466.9,0.40533]
[1725470875333,2.10607091,2467.2,2467.0,0.40532]
[1725470875530,2.10607091,2467.2,2466.6,1.01349]
[1725470875531,3.2078,2467.1,2466.7,2.13013]
[1725470875738,0.00607091,2467.2,2467.1,0.40531]
[1725470875937,3.61916091,2467.2,2467.0,0.40532]
[1725470876138,3.21387091,2467.2,2467.1,0.40531]
[1725470876337,3.61916091,2467.2,2467.0,0.40531]
[1725470876640,3.61917091,2467.2,2467.0,0.40531]
[1725470876928,3.61917091,2467.2,2467.1,0.40531]
[1725470876929,0.00607091,2467.2,2467.1,0.40531]
[1725470878034,0.41137091,2467.2,2467.0,0.40532]
[1725470878236,0.41137091,2467.2,2466.7,1.1167]
[1725470878237,0.00607091,2467.2,2467.1,0.40531]
[1725470878639,0.00607091,2467.2,2466.7,2.13013]
[1725470878640,0.41137091,2467.2,2467.0,0.40532]
[1725470879633,2.10607091,2467.2,2466.8,8.74028008]
[1725470879943,5.71917091,2467.2,2467.0,0.40532]
[1725470880135,0.40532,2467.1,2466.9,0.40533]
[1725470881341,0.40532,2467.1,2466.4,6.32134]
[1725470881342,0.40538,2466.7,2466.5,0.4054]
[1725470881532,5.3078,2466.6,2466.3,0.00322865]
[1725470881733,0.40539,2466.6,2466.4,0.40541]
[1725470882034,2.1,2466.8,2466.3,0.35812865]
[1725470882035,1.01344,2466.7,2466.3,0.35812865]
[1725470882236,2.50542,2466.4,2466.3,0.00322865]
[1725470882438,3.72289124,2466.4,2466.3,0.00322865]
[1725470882736,0.3902,2466.7,2466.3,8.43326356]
[1725470883036,3.2078,2466.9,2466.8,0.40536]
[1725470883242,0.00607091,2467.2,2466.6,2.1]